lending/lending_fUSD_20240703
["ID","MTS","AMOUNT","RATE_DAILY","PERIOD"]
[330964864,1719972643118,-73.9389534,0.0002,2]
[330964865,1719972643130,-659.44059965,0.0002,2]
[330964866,1719972643139,-659.44059965,0.0002,2]
[330964867,1719972643149,-1650.26301703,0.00021917,7]
[330964868,1719972643428,-659.44059965,0.0002,2]
[330964869,1719972643438,-4546.41480063,0.00021917,7]
[330964870,1719972643449,-3088.61329037,0.00021917,7]
[330964871,1719972643461,-804.75843451,0.00021917,7]
[330964872,1719972643474,-2495.76915653,0.00021917,7]
[330964873,1719972643486,-6091.40410258,0.00021917,7]
[330964874,1719972643497,-5751.6532499,0.00021917,7]
[330964875,1719972647003,-5000.0,0.00017444,2]
[330964877,1719972647012,-330.48314129,0.00018919,2]
[330964879,1719972647026,-545.99987395,0.00018919,2]
[330964881,1719972647035,-306.86900343,0.00019342,2]
[330964884,1719972647047,-6150.2,0.00019342,2]
[330964908,1719972647288,-12619.78476134,0.00019342,2]
[330964910,1719972647299,-659.44059965,0.0002,2]
[330964913,1719972647308,-659.44059965,0.0002,2]
[330964914,1719972647317,-659.44059965,0.0002,2]
[330964916,1719972647326,-659.44059965,0.0002,2]
[330964919,1719972647336,-125.95249207,0.0002,2]
[330964921,1719972647348,-533.48810758,0.0002,2]
[330964922,1719972647357,-659.44059965,0.0002,2]
[330964923,1719972647366,-659.44059965,0.0002,2]
[330964924,1719972647375,-659.44059965,0.0002,2]
[330964925,1719972647384,-659.44059965,0.0002,2]
[330964926,1719972647393,-659.44059965,0.0002,2]
[330964927,1719972647403,-659.44059965,0.0002,2]
[330964929,1719972647412,-659.44059965,0.0002,2]
[330964931,1719972647421,-659.44059965,0.0002,2]
[330964933,1719972647430,-659.44059965,0.0002,2]
[330964935,1719972647440,-659.44059965,0.0002,2]
[330964936,1719972647449,-659.44059965,0.0002,2]
[330964938,1719972647459,-659.44059965,0.0002,2]
[330964939,1719972647468,-2638.83180819,0.000202,2]
[330964940,1719972647481,-284.58,0.00021907,3]
[330964941,1719972647490,-20703.09399331,0.00021917,7]
[330964942,1719972647503,-486.0114982,0.00021917,7]
[330964943,1719972647513,-713.0963008,0.00021917,7]
[330964944,1719972647547,-502.08381507,0.00021917,7]
[330964945,1719972647559,-418.68144475,0.00021917,7]
[330964946,1719972647570,-1730.88861531,0.00021917,7]
[330964947,1719972647581,-990.10075007,0.00021917,7]
[330964948,1719972647592,-1261.8553422,0.00021917,7]
[330964949,1719972647604,-847.5,0.00021917,7]
[330964950,1719972647615,-3806.86725448,0.00021917,7]
[330964951,1719972647686,-659.44059965,0.0002,2]
[330964952,1719972647695,-659.44059965,0.0002,2]
[330964953,1719972647705,-9779.40935003,0.00021917,7]
[330964954,1719972647717,-6162.6,0.00021917,7]
[330964955,1719972647731,-298.31787138,0.00021917,7]
[330964956,1719972647743,-150736.77847007,0.00021917,7]
[330964957,1719972647755,-3075.0,0.00021917,7]
[330964959,1719972808558,3793.31031604,0.00011199,2]
[330964960,1719972861780,155.44657418,0.00011199,2]
[330964961,1719972884888,2028.09747309,0.00011199,2]
[330964962,1719972896501,1341.73620512,0.00011199,2]
[330964963,1719972935935,698.87218517,0.00011199,2]
[330964965,1719973028032,-2839.08785384,0.00014771,7]
[330964966,1719973055384,428.92826263,0.00011199,2]
[330964967,1719973075736,210.9206346,0.00011199,2]
[330964968,1719973093099,276.95305752,0.00011199,2]
[330964969,1719973149626,2391.35887576,0.00011199,2]
[330964970,1719973164083,552.51494431,0.00011199,2]
[330964971,1719973209141,1047.28793829,0.00011199,2]
[330964972,1719973601235,-2839.08785384,0.000166,5]
[330964973,1719973615393,-8643.91214616,0.000166,5]
[330964974,1719973616375,11483.0,0.000166,5]
[330964975,1719973698326,-5396.0,0.000165,5]
[330964996,1719973832239,-574.46,0.00012195,2]
[330964997,1719973832248,-770.55069158,0.00012202,2]
[330964998,1719973832257,-155.51577953,0.00012273,2]
[330964999,1719973832266,-297.70719904,0.00012302,2]
[330965000,1719973832275,-447.0,0.00012908,2]
[330965001,1719973832284,-2681.7576,0.00013799,2]
[330965002,1719973832293,-1717.00462985,0.00013799,2]
[330965003,1719973832305,-1040.17419011,0.00013799,2]
[330965004,1719973832313,-1341.09418076,0.00013849,2]
[330965005,1719973832323,-2462.19718388,0.00013889,2]
[330965006,1719973832333,-201.09444525,0.00013899,2]
[330965007,1719973832344,-1165.65665655,0.00013899,2]
[330965008,1719973832354,-1181.1788982,0.00013899,2]
[330965009,1719973832362,-150.0,0.00013978,2]
[330965010,1719973832372,-499.99,0.00013979,2]
[330965011,1719973832381,-3054.20526715,0.00013979,2]
[330965012,1719973832391,-503.15430007,0.00013979,2]
[330965013,1719973832402,-4334.02072546,0.00013979,2]
[330965014,1719973832412,-656.54570798,0.00013979,2]
[330965015,1719973832422,-440.0,0.00013979,2]
[330965016,1719973832437,-284.1080006,0.00013979,2]
[330965017,1719973832448,-251.88644517,0.00013979,2]
[330965018,1719973832458,-3144.98428465,0.00013979,2]
[330965019,1719973832469,-436.64173545,0.00013979,2]
[330965020,1719973832481,-312.75876885,0.00013979,2]
[330965021,1719973832570,-9367.2238552,0.00013979,2]
[330965023,1719973832579,-21193.7761448,0.00013989,2]
[330965026,1719973832590,-8615.55268806,0.00013989,2]
[330965028,1719973832601,-246149.31865124,0.00013989,2]
[330965048,1719973838105,-336.50000001,0.00013989,2]
[330965052,1719973838116,-6392.52189754,0.00013989,2]
[330965054,1719973838131,-1760.05,0.00013989,2]
[330965056,1719973838143,-331.8597783,0.00013989,2]
[330965058,1719973838154,-28322.8141531,0.00013989,2]
[330965060,1719973838166,-135554.54081593,0.00013989,2]
[330965062,1719973838176,-578.14,0.00013989,2]
[330965064,1719973838186,-1237.94,0.00013989,2]
[330965066,1719973838196,-150.0,0.0001409,2]
[330965068,1719973838205,-151.85,0.00014113,2]
[330965070,1719973838213,-250.0,0.00014199,2]
[330965072,1719973838222,-1000.0,0.00014217,2]
[330965074,1719973838231,-574.46,0.00014459,2]
[330965076,1719973838241,-178.79,0.00014878,2]
[330965078,1719973838250,-624.06512353,0.00015,2]
[330965079,1719973838259,-2462.19718388,0.00015048,2]
[330965080,1719973838268,-500.0,0.00015067,2]
[330965081,1719973838277,-400.0,0.00015067,2]
[330965082,1719973838286,-500.0,0.00015067,2]
[330965083,1719973838295,-240.0,0.00015264,2]
[330965084,1719973838304,-250.0,0.00015444,2]
[330965085,1719973838313,-3084.7,0.00015485,2]
[330965086,1719973838325,-160.913,0.00015869,2]
[330965087,1719973838336,-1000.0,0.00015994,2]
[330965088,1719973838349,-167.58,0.00016167,2]
[330965089,1719973838358,-2462.19718388,0.00016206,2]
[330965090,1719973838367,-1091.75830289,0.00016268,2]
[330965091,1719973838378,-23890.0,0.00016308,2]
[330965092,1719973838387,-794.75413447,0.00016315,2]
[330965093,1719973838396,-8058.58867465,0.00016315,2]
[330965094,1719973838406,-215.03,0.00016357,2]
[330965095,1719973838415,-151.59,0.00016361,2]
[330965096,1719973838424,-4380.27,0.00016398,2]
[330965097,1719973838435,-384.0,0.00016662,2]
[330965098,1719973838446,-527.78130282,0.00016699,2]
[330965099,1719973838455,-500.0,0.00016711,2]
[330965100,1719973838464,-574.46,0.00016723,2]
[330965102,1719973838475,-155.53272354,0.00016808,2]
[330965103,1719973838484,-173.76,0.00017054,2]
[330965104,1719973838493,-156.04584126,0.00017159,2]
[330965105,1719973838502,-173.76,0.00017232,2]
[330965106,1719973838515,-156.1764692,0.00017253,2]
[330965107,1719973838524,-2462.19718388,0.00017365,2]
[330965108,1719973838534,-173.76,0.0001741,2]
[330965109,1719973838544,-5876.3707721,0.00017533,2]
[330965110,1719973838553,-173.76,0.00017587,2]
[330965111,1719973838562,-173.76,0.00017765,2]
[330965112,1719973838571,-1000.0,0.00017771,2]
[330965113,1719973838580,-500.0,0.00017807,2]
[330965114,1719973838590,-5000.0,0.00017889,2]
[330965115,1719973838600,-2177.166,0.00017893,2]
[330965116,1719973838609,-1304.0,0.00017893,2]
[330965117,1719973838620,-516.764,0.00017893,2]
[330965118,1719973838630,-1987.0,0.00017893,2]
[330965119,1719973838639,-283.0,0.00017893,2]
[330965120,1719973838648,-3206.0,0.00017893,2]
[330965121,1719973838657,-199.604,0.00017893,2]
[330965122,1719973838667,-1074.937,0.00017893,2]
[330965123,1719973838676,-1830.0,0.00017893,2]
[330965124,1719973838685,-853.177,0.00017893,2]
[330965125,1719973838694,-173.76,0.00017943,2]
[330965126,1719973838704,-370.40395945,0.00018,2]
[330965127,1719973838713,-614.0,0.00018199,2]
[330965128,1719973838722,-1270.41808702,0.0001852,2]
[330965129,1719973838731,-2462.19718388,0.00018524,2]
[330965130,1719973838741,-166.66666666,0.00018595,2]
[330965131,1719973838750,-150.62821547,0.00018627,2]
[330965132,1719973838759,-176.79125979,0.00018633,2]
[330965133,1719973838768,-166.66666666,0.00018634,2]
[330965134,1719973838776,-150.62821547,0.00018638,2]
[330965135,1719973838784,-152.69158614,0.0001864,2]
[330965136,1719973838793,-151.94784439,0.00018651,2]
[330965137,1719973838802,-257.95822772,0.0001867,2]
[330965138,1719973838811,-444.03580166,0.00018672,2]
[330965139,1719973838821,-152.69158614,0.00018681,2]
[330965140,1719973838830,-176.79125979,0.00018699,2]
[330965141,1719973838839,-150.45897551,0.00018707,2]
[330965142,1719973838848,-166.66666667,0.00018717,2]
[330965143,1719973838858,-1759.20948392,0.00018717,2]
[330965145,1719973838867,-155.0,0.00018739,2]
[330965147,1719973838878,-153.31041478,0.00018741,2]
[330965149,1719973838887,-282.25990685,0.00018741,2]
[330965151,1719973838896,-153.77353532,0.00018758,2]
[330965153,1719973838906,-444.03580166,0.00018759,2]
[330965155,1719973838916,-166.66666666,0.0001878,2]
[330965158,1719973838926,-236.31313486,0.00018809,2]
[330965161,1719973838936,-153.31041478,0.00018811,2]
[330965164,1719973838946,-163.49,0.00018849,30]
[330965167,1719973838955,-595.47859503,0.00018852,2]
[330965169,1719973838965,-155.0,0.00018864,2]
[330965171,1719973838975,-150.0,0.00018868,2]
[330965173,1719973838984,-173.59,0.00018877,2]
[330965175,1719973838993,-266.36569175,0.00018899,2]
[330965176,1719973839003,-474.74245113,0.00018899,2]
[330965177,1719973839012,-19855.47364185,0.000189,2]
[330965178,1719973839022,-270.32,0.000189,2]
[330965179,1719973839032,-270.32,0.000189,2]
[330965180,1719973839041,-257.95822772,0.00018903,2]
[330965181,1719973839051,-500.0,0.00018903,2]
[330965182,1719973839060,-186.24854646,0.00018908,2]
[330965183,1719973839070,-176.79125979,0.00018911,2]
[330965184,1719973839080,-526.28304125,0.00018919,2]
[330965185,1719973839089,-309.85092244,0.00018919,2]
[330965186,1719973839099,-154.8058886,0.00018925,2]
[330965187,1719973839109,-1270.41808702,0.00018928,2]
[330965188,1719973839119,-176.79125979,0.00018928,2]
[330965189,1719973839129,-153.31041478,0.00018936,2]
[330965190,1719973839138,-150.62821547,0.00018942,2]
[330965191,1719973839148,-236.31313486,0.0001895,2]
[330965192,1719973839158,-151.22007479,0.00018978,2]
[330965193,1719973839167,-176.79125979,0.00018979,2]
[330965194,1719973839177,-444.03580166,0.00018985,2]
[330965195,1719973839186,-574.46,0.00018987,2]
[330965196,1719973839196,-227.12084219,0.00018999,2]
[330965197,1719973839205,-227.12084219,0.00018999,2]
[330965198,1719973839215,-300.0,0.00019,2]
[330965199,1719973839224,-150.62821547,0.00019008,2]
[330965200,1719973839233,-184.26221317,0.00019057,2]
[330965201,1719973839243,-151.22007479,0.00019072,2]
[330965202,1719973839252,-153.31041478,0.00019086,2]
[330965203,1719973839261,-151.59,0.00019088,2]
[330965204,1719973839271,-150.0956725,0.00019088,2]
[330965205,1719973839280,-151.94784439,0.00019088,2]
[330965206,1719973839290,-150.62821547,0.00019101,2]
[330965207,1719973839299,-154.8058886,0.00019158,2]
[330965208,1719973839309,-250.0,0.00019178,2]
[330965209,1719973839318,-368.3076521,0.00019229,2]
[330965210,1719973839328,-257.95822772,0.00019235,2]
[330965211,1719973839338,-923.83948535,0.00019241,2]
[330965212,1719973839348,-595.47859503,0.00019244,2]
[330965213,1719973839358,-153.31041478,0.00019246,2]
[330965214,1719973839368,-236.31313486,0.00019281,2]
[330965215,1719973839378,-282.25990685,0.00019289,2]
[330965216,1719973839388,-155.8693612,0.00019302,2]
[330965217,1719973839398,-257.95822772,0.00019304,2]
[330965218,1719973839407,-150.62821547,0.00019325,2]
[330965219,1719973839419,-150.0,0.00019328,2]
[330965220,1719973839429,-154.8058886,0.00019343,2]
[330965221,1719973839443,-236.31313486,0.00019383,2]
[330965222,1719973839453,-257.95822772,0.00019392,2]
[330965223,1719973839463,-153.31041478,0.00019394,2]
[330965224,1719973839475,-153.77353532,0.00019398,2]
[330965225,1719973839486,-1270.41808702,0.0001942,2]
[330965226,1719973839497,-236.31313486,0.00019431,2]
[330965227,1719973839507,-595.47859503,0.00019464,2]
[330965228,1719973839519,-595.47859503,0.0001947,2]
[330965229,1719973839529,-595.47859503,0.0001949,2]
[330965230,1719973839539,-166.6666667,0.00019499,2]
[330965231,1719973839549,-150.62821547,0.0001952,2]
[330965232,1719973839559,-159.56926648,0.00019534,2]
[330965233,1719973839568,-153.31041478,0.00019546,2]
[330965234,1719973839578,-166.66666668,0.00019547,2]
[330965235,1719973839587,-1000.0,0.00019548,2]
[330965236,1719973839598,-166.66666666,0.00019564,2]
[330965237,1719973839608,-176.79125979,0.00019564,2]
[330965238,1719973839617,-525.85405999,0.00019565,2]
[330965239,1719973839628,-151.94784439,0.00019581,2]
[330965240,1719973839637,-2462.19718388,0.00019683,2]
[330965241,1719973839646,-151.22007479,0.00019683,2]
[330965242,1719973839656,-1270.41808702,0.00019685,2]
[330965243,1719973839666,-1270.41808702,0.00019699,2]
[330965244,1719973839675,-440.261424,0.00019726,2]
[330965245,1719973839685,-595.47859503,0.00019736,2]
[330965246,1719973839694,-151.22007479,0.00019757,2]
[330965247,1719973839704,-282.25990685,0.00019765,2]
[330965248,1719973839713,-154.8058886,0.00019774,2]
[330965249,1719973839723,-282.25990685,0.00019776,2]
[330965250,1719973839732,-595.47859503,0.00019812,2]
[330965251,1719973839742,-150.62821547,0.00019819,2]
[330965252,1719973839752,-154.40930442,0.00019837,2]
[330965253,1719973839762,-153.31041478,0.00019846,2]
[330965254,1719973839772,-154.8167859,0.00019851,2]
[330965255,1719973839782,-741.0,0.00019877,2]
[330965256,1719973839792,-314.22469611,0.00019893,2]
[330965257,1719973839802,-151.22007479,0.00019924,2]
[330965258,1719973839812,-153.31041478,0.00019935,2]
[330965259,1719973839822,-155.0,0.00019964,2]
[330965260,1719973839832,-1270.41808702,0.0001999,2]
[330965261,1719973839842,-159.45408013,0.0001999,2]
[330965262,1719973839851,-270.32,0.0001999,2]
[330965263,1719973839861,-500.0,0.00019999,2]
[330965264,1719973839871,-309.93708184,0.0002,2]
[330965265,1719973839881,-309.93708184,0.0002,2]
[330965266,1719973839890,-309.93708184,0.0002,2]
[330965267,1719973839900,-181.20644144,0.0002,2]
[330965268,1719973840391,-128.7306404,0.0002,2]
[330965269,1719973840402,-309.93708184,0.0002,2]
[330965270,1719973840412,-309.93708184,0.0002,2]
[330965271,1719973840422,-309.93708184,0.0002,2]
[330965272,1719973840433,-309.93708184,0.0002,2]
[330965273,1719973840446,-154.40930442,0.00020002,2]
[330965274,1719973840456,-595.47859503,0.0002003,2]
[330965275,1719973840466,-444.03580166,0.0002003,2]
[330965276,1719973840478,-156.44755964,0.00020044,2]
[330965277,1719973840488,-444.03580166,0.00020048,2]
[330965278,1719973840498,-151.22007479,0.00020072,2]
[330965279,1719973840508,-282.25990685,0.00020079,2]
[330965280,1719973840520,-150.62821547,0.00020113,2]
[330965281,1719973840530,-152.69158614,0.00020117,2]
[330965282,1719973840539,-176.79125979,0.00020119,2]
[330965283,1719973840549,-236.31313486,0.00020139,2]
[330965284,1719973840560,-151.22007479,0.00020156,2]
[330965285,1719973840570,-923.83948535,0.0002019,2]
[330965286,1719973840580,-151.22007479,0.00020217,2]
[330965287,1719973840591,-257.95822772,0.00020227,2]
[330965288,1719973840601,-154.8167859,0.00020227,2]
[330965289,1719973840611,-257.95822772,0.00020238,2]
[330965290,1719973840622,-150.45897551,0.00020247,2]
[330965291,1719973840632,-154.8058886,0.00020247,2]
[330965292,1719973840643,-153.31041478,0.0002025,2]
[330965293,1719973840652,-1270.41808702,0.00020251,2]
[330965294,1719973840662,-257.95822772,0.00020275,2]
[330965295,1719973840672,-1270.41808702,0.00020277,2]
[330965296,1719973840682,-257.95822772,0.00020332,2]
[330965297,1719973840692,-176.79125979,0.00020369,2]
[330965298,1719973840702,-154.76462721,0.00020395,2]
[330965299,1719973840711,-258.72052232,0.00020396,2]
[330965300,1719973840724,-1011.6975647,0.00020396,2]
[330965301,1719973840734,-236.31313486,0.00020416,2]
[330965302,1719973840744,-153.31041478,0.00020429,2]
[330965303,1719973840754,-154.8167859,0.00020437,2]
[330965304,1719973840764,-176.79125979,0.0002045,2]
[330965305,1719973840774,-150.62821547,0.00020457,2]
[330965306,1719973840784,-444.03580166,0.00020507,2]
[330965307,1719973840794,-176.79125979,0.00020508,2]
[330965308,1719973840804,-166.66666666,0.00020522,2]
[330965309,1719973840814,-923.83948535,0.00020523,2]
[330965311,1719973840824,-282.25990685,0.00020526,2]
[330965312,1719973840835,-176.79125979,0.00020529,2]
[330965313,1719973840846,-166.66666668,0.00020542,2]
[330965314,1719973840856,-1270.41808702,0.00020544,2]
[330965315,1719973840867,-440.261424,0.00020548,2]
[330965316,1719973840877,-282.25990685,0.0002055,2]
[330965317,1719973840887,-154.4154659,0.00020555,2]
[330965318,1719973840898,-176.79125979,0.00020556,2]
[330965319,1719973840909,-150.0,0.00020561,2]
[330965320,1719973840920,-151.07807944,0.00020562,2]
[330965321,1719973840930,-236.31313486,0.00020563,2]
[330965322,1719973840940,-1270.41808702,0.00020566,2]
[330965323,1719973840951,-1270.41808702,0.00020571,2]
[330965324,1719973840961,-595.47859503,0.00020587,2]
[330965325,1719973840971,-150.62821547,0.00020592,2]
[330965326,1719973840981,-1270.41808702,0.00020593,2]
[330965327,1719973840991,-923.83948535,0.00020621,2]
[330965328,1719973841001,-236.31313486,0.00020622,2]
[330965329,1719973841011,-923.83948535,0.00020645,2]
[330965330,1719973841021,-923.83948535,0.00020651,2]
[330965331,1719973841030,-171.11766114,0.00020663,2]
[330965332,1719973841040,-154.87214896,0.00020679,2]
[330965333,1719973841050,-150.62821547,0.00020687,2]
[330965334,1719973841059,-161.20256662,0.00020699,2]
[330965335,1719973841069,-176.79125979,0.00020701,2]
[330965336,1719973841080,-595.47859503,0.00020739,2]
[330965337,1719973841091,-154.8058886,0.00020741,2]
[330965338,1719973841100,-154.8167859,0.00020744,2]
[330965339,1719973841110,-150.45897551,0.00020745,2]
[330965340,1719973841120,-257.95822772,0.00020746,2]
[330965341,1719973841132,-303.92397838,0.0002078,2]
[330965342,1719973841145,-595.47859503,0.00020801,2]
[330965343,1719973841154,-444.03580166,0.00020809,2]
[330965344,1719973841163,-282.25990685,0.00020821,2]
[330965345,1719973841174,-236.31313486,0.00020824,2]
[330965346,1719973841183,-257.95822772,0.00020841,2]
[330965347,1719973841192,-2462.19718388,0.00020841,2]
[330965348,1719973841202,-159.56926648,0.00020843,2]
[330965349,1719973841211,-1304.0,0.00020893,2]
[330965350,1719973841220,-644.054,0.00020893,2]
[330965351,1719973841229,-283.0,0.00020893,2]
[330965352,1719973841239,-527.916,0.00020893,2]
[330965353,1719973841248,-360.507,0.00020893,2]
[330965354,1719973841258,-1270.41808702,0.00020904,2]
[330965355,1719973841267,-150.62821547,0.00020933,2]
[330965356,1719973841277,-151.22007479,0.00020937,2]
[330965357,1719973841287,-150.62821547,0.0002097,2]
[330965358,1719973841296,-923.83948535,0.0002098,2]
[330965359,1719973841305,-154.87214896,0.00020986,2]
[330965360,1719973841315,-203.233329,0.00021,2]
[330965361,1719973841325,-154.8058886,0.00021011,2]
[330965362,1719973841336,-151.22007479,0.00021027,2]
[330965363,1719973841346,-282.25990685,0.00021037,2]
[330965364,1719973841356,-150.62821547,0.00021061,2]
[330965365,1719973841365,-166.66666668,0.00021093,2]
[330965366,1719973841377,-500.0,0.00021095,2]
[330965367,1719973841387,-150.0,0.00021109,2]
[330965368,1719973841397,-151.07807944,0.00021114,2]
[330965369,1719973841406,-176.79125979,0.00021116,2]
[330965370,1719973841417,-150.0,0.00021121,2]
[330965371,1719973841427,-444.03580166,0.00021123,2]
[330965372,1719973841439,-176.79125979,0.00021123,2]
[330965373,1719973841449,-153.77353532,0.00021144,2]
[330965374,1719973841459,-151.22007479,0.00021149,2]
[330965375,1719973841469,-150.0,0.00021152,2]
[330965376,1719973841481,-150.0,0.00021174,2]
[330965377,1719973841490,-153.77353532,0.00021182,2]
[330965378,1719973841500,-154.8058886,0.00021187,2]
[330965379,1719973841511,-159.68884247,0.00021202,2]
[330965380,1719973841520,-1270.41808702,0.00021216,2]
[330965381,1719973841530,-154.8167859,0.00021226,2]
[330965382,1719973841540,-150.62821547,0.00021228,2]
[330965383,1719973841549,-150.0,0.00021235,2]
[330965384,1719973841559,-153.31041478,0.00021235,2]
[330965385,1719973841569,-444.03580166,0.00021236,2]
[330965386,1719973841579,-152.69158614,0.0002124,2]
[330965387,1719973841588,-574.46,0.00021251,2]
[330965388,1719973841597,-1176.70625993,0.00021258,4]
[330965389,1719973841607,-150.45897551,0.00021274,2]
[330965390,1719973841616,-680.53,0.0002128,2]
[330965391,1719973841630,-151.0,0.00021281,2]
[330965392,1719973841640,-151.07807944,0.00021297,2]
[330965393,1719973841649,-150.0,0.00021299,2]
[330965394,1719973841662,-150.0,0.00021314,2]
[330965395,1719973841672,-1000.0,0.00021325,2]
[330965396,1719973841682,-176.79125979,0.00021325,2]
[330965397,1719973841692,-150.62821547,0.00021328,2]
[330965398,1719973841703,-150.0,0.00021346,2]
[330965399,1719973841713,-444.03580166,0.00021349,2]
[330965400,1719973841723,-659.33829417,0.0002135,2]
[330965401,1719973841733,-151.22007479,0.00021363,2]
[330965402,1719973841744,-595.47859503,0.00021368,2]
[330965403,1719973841754,-440.261424,0.0002137,2]
[330965404,1719973841764,-150.0,0.00021373,2]
[330965405,1719973841774,-314.22469611,0.00021392,2]
[330965406,1719973841784,-1250.0,0.000214,2]
[330965407,1719973841795,-5268.3454,0.00021412,2]
[330965408,1719973841805,-236.31313486,0.00021416,2]
[330965409,1719973841816,-1270.41808702,0.00021428,2]
[330965410,1719973841826,-150.0,0.0002145,2]
[330965411,1719973841836,-1154.28349772,0.00021458,2]
[330965412,1719973841847,-153.31041478,0.00021499,2]
[330965413,1719973841858,-2384.65129707,0.000215,2]
[330965414,1719973841868,-1000.0,0.000215,2]
[330965415,1719973841881,-176.79125979,0.00021523,2]
[330965416,1719973841891,-257.95822772,0.00021526,2]
[330965417,1719973841901,-595.47859503,0.00021533,2]
[330965418,1719973841910,-228.74288827,0.00021535,2]
[330965419,1719973841921,-390.09168632,0.0002154,2]
[330965420,1719973841931,-923.83948535,0.00021554,2]
[330965421,1719973841942,-1270.41808702,0.00021558,2]
[330965422,1719973841952,-923.83948535,0.00021559,2]
[330965423,1719973841962,-923.83948535,0.00021576,2]
[330965424,1719973841972,-595.47859503,0.00021579,2]
[330965425,1719973841982,-150.0,0.0002158,2]
[330965426,1719973841992,-659.33829417,0.00021584,2]
[330965427,1719973842001,-151.0,0.00021623,2]
[330965428,1719973842011,-154.76462721,0.00021632,2]
[330965429,1719973842020,-156.12,0.00021644,2]
[330965430,1719973842030,-153.77353532,0.00021647,2]
[330965431,1719973842040,-154.8058886,0.00021647,2]
[330965432,1719973842050,-452.8864648,0.00021657,2]
[330965433,1719973842060,-150.0,0.00021661,2]
[330965434,1719973842070,-1514.0,0.000217,2]
[330965435,1719973842079,-3000.0,0.000217,2]
[330965436,1719973842090,-150.62821547,0.00021708,2]
[330965437,1719973842099,-150.0,0.00021719,2]
[330965438,1719973842108,-236.31313486,0.00021721,2]
[330965439,1719973842118,-151.22007479,0.00021748,2]
[330965440,1719973842129,-732.0,0.00021752,2]
[330965441,1719973842140,-257.95822772,0.00021761,2]
[330965442,1719973842149,-270.32,0.00021786,2]
[330965443,1719973842159,-150.0,0.00021796,2]
[330965444,1719973842169,-150.62821547,0.00021797,2]
[330965445,1719973842179,-151.22007479,0.000218,2]
[330965446,1719973842188,-595.47859503,0.00021804,2]
[330965447,1719973842198,-595.47859503,0.00021805,2]
[330965448,1719973842207,-154.76462721,0.00021814,2]
[330965449,1719973842216,-151.59,0.00021814,2]
[330965450,1719973842227,-17602.3875,0.00021817,2]
[330965451,1719973842236,-1000.0,0.00021817,2]
[330965452,1719973842246,-329.0074,0.00021817,2]
[330965453,1719973842256,-157.44470744,0.00021817,2]
[330965454,1719973842265,-178.72262205,0.00021817,2]
[330965455,1719973842275,-5750.65381595,0.00021817,2]
[330965456,1719973842284,-592.78293273,0.00021817,2]
[330965457,1719973842294,-1005.43481714,0.00021817,2]
[330965458,1719973842303,-659.33829417,0.00021817,2]
[330965459,1719973842313,-151.22007479,0.00021819,2]
[330965460,1719973842323,-236.31313486,0.00021821,2]
[330965461,1719973842332,-500.0,0.00021831,2]
[330965462,1719973842342,-200.0,0.00021831,2]
[330965463,1719973842351,-154.8058886,0.00021847,2]
[330965464,1719973842361,-595.47859503,0.00021848,2]
[330965465,1719973842370,-150.0,0.00021852,2]
[330965466,1719973842381,-3172.88245229,0.00021861,2]
[330965467,1719973842390,-444.03580166,0.00021864,2]
[330965468,1719973842400,-152.69158614,0.00021868,2]
[330965469,1719973842410,-280.0,0.00021871,2]
[330965470,1719973842419,-150.0,0.00021881,2]
[330965471,1719973842429,-151.22007479,0.00021884,2]
[330965472,1719973842443,-150.5,0.0002189,30]
[330965473,1719973842453,-150.0,0.0002189,4]
[330965474,1719973842462,-159.74497747,0.0002189,4]
[330965475,1719973842471,-150.0,0.0002189,4]
[330965476,1719973842481,-365.78699378,0.00021899,2]
[330965477,1719973842491,-748.0,0.000219,4]
[330965478,1719973842501,-150.5,0.000219,30]
[330965479,1719973842511,-2784.0,0.000219,4]
[330965480,1719973842521,-270.32,0.00021907,2]
[330965481,1719973842532,-270.32,0.00021907,2]
[330965482,1719973842541,-270.32,0.00021907,2]
[330965483,1719973842550,-270.32,0.00021907,2]
[330965484,1719973842560,-270.32,0.00021907,2]